bitfinex-derivatives/quotes_BTCF0:USTF0_20250827
["timestamp","ask_amount","ask_price","bid_price","bid_amount"]
[1756314126412,1.28172967,112070.0,112060.0,0.0001]
[1756314127719,0.8444645,112070.0,112060.0,0.0893225]
[1756314127919,2.13640967,112070.0,112060.0,0.0893225]
[1756314128121,1.88640967,112070.0,112060.0,0.0893225]
[1756314128419,1.88740967,112070.0,112060.0,0.0893225]
[1756314129216,1.88712967,112070.0,112060.0,0.0001]
[1756314130019,2.13712967,112070.0,112060.0,0.0001]
[1756314131130,0.0892305,112050.0,112040.0,0.10930851]
[1756314131338,1.03074567,112050.0,112040.0,0.01997261]
[1756314131637,1.88554567,112050.0,112040.0,0.01997261]
[1756314132535,1.88554567,112050.0,112040.0,0.02097261]
[1756314132935,1.03074567,112050.0,112040.0,0.02097261]
[1756314133234,1.03074567,112050.0,112040.0,0.001]
[1756314133438,0.8434805,112050.0,112040.0,0.001]
[1756314133641,1.28074567,112050.0,112040.0,0.001]
[1756314134137,2.13458567,112050.0,112040.0,0.001]
[1756314134639,1.6973205,112050.0,112040.0,0.0903384]
[1756314134843,2.13446567,112050.0,112040.0,0.0902384]
[1756314135140,2.13446567,112050.0,112040.0,0.001]
[1756314136729,1.28074567,112050.0,112040.0,0.0902384]
[1756314136928,2.13450567,112050.0,112040.0,0.0902384]
[1756314137134,2.13450567,112050.0,112040.0,0.001]
[1756314137539,1.28074567,112050.0,112040.0,0.001]
[1756314137836,2.13410567,112050.0,112040.0,0.001]
[1756314138633,2.49490567,112050.0,112040.0,0.001]
[1756314138841,0.2045164,112030.0,112020.0,0.00026]
[1756314139031,0.2327043,112020.0,112010.0,1.03463132]
[1756314139333,0.66996947,112020.0,112010.0,0.96302393]
[1756314139535,1.03076947,112020.0,112010.0,0.01962213]
[1756314139927,0.2307123,112010.0,112000.0,0.9452876]
[1756314140935,0.2307123,112010.0,112000.0,0.9441876]
[1756314141127,0.2307123,112010.0,112000.0,0.00286]
[1756314141326,0.5915123,112010.0,112000.0,0.85566]
[1756314141528,0.0892703,112000.0,111990.0,2.67840263]
[1756314141723,0.1766203,112000.0,111990.0,4.05120263]
[1756314142137,0.08735,112000.0,111990.0,4.05120263]
[1756314143137,0.053,112000.0,111990.0,4.05220263]
[1756314143437,0.08735,112000.0,111990.0,4.05220263]
[1756314144335,0.1766203,112000.0,111990.0,4.30220263]
[1756314145139,0.08735,112000.0,111990.0,4.30220263]
[1756314145735,0.1766203,112000.0,111990.0,3.86493746]
[1756314145936,0.1766203,112000.0,111990.0,4.30220263]
[1756314146138,0.1766203,112000.0,111990.0,3.37622503]
[1756314146330,0.08735,112000.0,111990.0,3.45822503]
[1756314146736,0.1766203,112000.0,111990.0,3.45822503]
[1756314147035,0.08735,112000.0,111990.0,3.45822503]
[1756314147236,0.02818,112000.0,111990.0,3.45822503]
[1756314150442,0.02725,112010.0,112000.0,0.0921303]
[1756314150633,0.02725,112010.0,112000.0,0.89019547]
[1756314150634,0.02735,112010.0,112000.0,0.89019547]
[1756314150935,0.0001,112010.0,112000.0,1.82746064]
[1756314151135,0.0001,112010.0,112000.0,2.11746064]
[1756314151537,0.0001,112010.0,112000.0,2.11846064]
[1756314152141,0.4684364,112040.0,112020.0,0.0892544]
[1756314152347,0.4064436,112040.0,112030.0,1.37703157]
[1756314152546,0.0456436,112040.0,112030.0,1.37703157]
[1756314153043,0.1417336,112040.0,112030.0,0.52911157]
[1756314153245,0.250002,112040.0,112030.0,1.37947157]
[1756314153746,0.251002,112040.0,112030.0,1.37947157]
[1756314154047,0.251002,112040.0,112030.0,0.0918464]
[1756314154241,0.1617636,112040.0,112030.0,0.9420864]
[1756314154454,0.0859836,112040.0,112030.0,1.37935157]
[1756314154643,0.1437336,112040.0,112030.0,1.37935157]
[1756314155141,0.1106136,112040.0,112030.0,1.37935157]
[1756314155346,0.0859836,112040.0,112030.0,1.37935157]
[1756314155538,0.0476436,112040.0,112030.0,1.74015157]
[1756314156250,0.002,112040.0,112030.0,2.36015157]
[1756314156549,0.001,112040.0,112030.0,2.36901775]
[1756314156848,0.02725,112050.0,112040.0,0.0892384]
[1756314157142,0.04351,112050.0,112040.0,0.88730357]
[1756314157546,0.12334,112050.0,112040.0,1.73790357]
[1756314157750,0.12334,112050.0,112040.0,0.88730357]
[1756314157942,0.09871,112050.0,112040.0,1.73778357]
[1756314158150,0.09871,112050.0,112040.0,1.80934366]
[1756314158644,0.04351,112050.0,112040.0,1.80934366]
[1756314158847,0.02825,112050.0,112040.0,1.80934366]
[1756314159851,0.02825,112050.0,112040.0,1.80890366]
[1756314160352,0.02825,112050.0,112040.0,1.80886366]
[1756314160548,0.12434,112050.0,112040.0,1.80870366]
[1756314161045,0.12434,112050.0,112040.0,0.95886366]
[1756314161348,0.12434,112050.0,112040.0,1.80870366]
[1756314161552,0.14337,112050.0,112040.0,1.37127849]
[1756314161746,0.14337,112050.0,112040.0,1.80854366]
[1756314162147,0.88674567,112050.0,112040.0,0.0892384]
[1756314162347,0.91986567,112050.0,112040.0,0.9387984]
[1756314162955,0.4826005,112050.0,112040.0,0.0892384]
[1756314163258,0.2316084,112040.0,112030.0,0.0892437]
[1756314163449,0.2316084,112040.0,112030.0,1.37598887]
[1756314163651,0.2316084,112040.0,112030.0,0.52650887]
[1756314163856,0.2316084,112040.0,112030.0,1.37578887]
[1756314164057,0.4816084,112040.0,112030.0,1.37578887]
[1756314164357,0.4816084,112040.0,112030.0,0.0892437]
[1756314164559,0.39237,112040.0,112030.0,1.37554887]
[1756314164761,0.14237,112040.0,112030.0,1.37554887]
[1756314165556,0.14437,112040.0,112030.0,1.37554887]
[1756314166361,0.11125,112040.0,112030.0,1.37554887]
[1756314166562,0.06759,112040.0,112030.0,1.37554887]
[1756314166759,0.10071,112040.0,112030.0,1.37554887]
[1756314167257,0.12534,112040.0,112030.0,1.37554887]
[1756314167463,0.002,112040.0,112030.0,2.09634887]
[1756314167663,0.002,112040.0,112030.0,0.88730887]
[1756314167863,0.002,112040.0,112030.0,1.73542887]
[1756314168654,0.02725,112050.0,112040.0,0.0892384]
[1756314168858,0.04351,112050.0,112040.0,0.88730357]
[1756314169260,0.14237,112050.0,112040.0,0.88730357]
[1756314169464,0.14237,112050.0,112040.0,1.73506357]
[1756314169659,0.02725,112050.0,112040.0,1.73506357]
[1756314170063,0.02925,112050.0,112040.0,1.73506357]
[1756314170971,0.002,112050.0,112040.0,2.56232874]
[1756314171363,0.02925,112050.0,112040.0,2.54232874]
[1756314171562,0.02725,112050.0,112040.0,1.25730357]
[1756314171858,0.02825,112050.0,112040.0,1.73486357]
[1756314173160,0.02725,112050.0,112040.0,1.73486357]
[1756314173360,0.02825,112050.0,112040.0,1.73486357]
[1756314174366,0.02825,112050.0,112040.0,1.80723027]
[1756314174566,0.02825,112050.0,112040.0,1.80647027]
[1756314174764,0.5934005,112050.0,112040.0,1.0080851]
[1756314175566,0.02825,112050.0,112040.0,1.80615027]
[1756314176063,0.2326005,112050.0,112040.0,0.95967027]
[1756314176270,0.2326005,112050.0,112040.0,1.44535027]
[1756314176670,0.2135705,112050.0,112040.0,1.44535027]
[1756314177859,0.02825,112050.0,112040.0,1.80615027]
[1756314178962,0.001,112050.0,112040.0,1.82567394]
[1756314179271,0.02897,112050.0,112040.0,1.82567394]
[1756314179467,0.10038,112050.0,112040.0,1.82483394]
[1756314179665,0.02897,112050.0,112040.0,1.82483394]
[1756314180059,0.08535,112050.0,112040.0,1.82483394]
[1756314180267,0.02897,112050.0,112040.0,1.82475394]
[1756314180564,0.02897,112050.0,112040.0,1.82467394]
[1756314181570,0.001,112050.0,112040.0,2.59193911]
[1756314181871,0.001,112050.0,112040.0,2.84193911]
[1756314182971,0.001,112050.0,112040.0,2.51193911]
[1756314183270,0.02897,112050.0,112040.0,2.07419394]
[1756314183474,0.02897,112050.0,112040.0,2.38419394]
[1756314185772,0.001,112050.0,112040.0,2.38419394]
[1756314186071,0.02897,112050.0,112040.0,2.38419394]
[1756314186365,0.02897,112050.0,112040.0,2.07419394]
[1756314186567,0.02897,112050.0,112040.0,2.45419394]
[1756314187272,0.02897,112050.0,112040.0,1.22919394]
[1756314187573,0.2327705,112050.0,112040.0,0.97919394]
[1756314187768,0.2327705,112050.0,112040.0,1.82343394]
[1756314188171,0.2327705,112050.0,112040.0,0.97919394]
[1756314188468,0.4827705,112050.0,112040.0,1.02528877]
[1756314188668,0.4827705,112050.0,112040.0,0.18112877]
[1756314188875,1.28083567,112050.0,112040.0,0.86352367]
[1756314189062,1.28083567,112050.0,112040.0,0.95276207]
[1756314189266,0.8435705,112050.0,112040.0,0.95276207]
[1756314189472,1.28083567,112050.0,112040.0,0.01952367]
[1756314189873,1.30812505,112050.0,112040.0,0.01952367]
[1756314190368,0.2317864,112030.0,112020.0,0.0893497]
[1756314190574,0.2317943,112020.0,112010.0,0.10924864]
[1756314190876,0.66905947,112020.0,112010.0,0.95332864]
[1756314191268,0.5925943,112020.0,112010.0,0.95332864]
[1756314191468,0.5925943,112020.0,112010.0,1.39059381]
[1756314191869,0.5885943,112020.0,112010.0,1.39059381]
[1756314192476,0.5885943,112020.0,112010.0,1.39159381]
[1756314193377,0.5885943,112020.0,112010.0,0.11024864]
[1756314193574,0.5885943,112020.0,112010.0,0.95392864]
[1756314195071,0.5885943,112020.0,112010.0,0.11024864]
[1756314195376,0.5885943,112020.0,112010.0,0.95396864]
[1756314195377,0.5487543,112020.0,112010.0,0.95396864]
[1756314195578,0.5885943,112020.0,112010.0,0.95396864]
[1756314196580,0.02797,112020.0,112010.0,1.82841117]
[1756314197175,0.1754141,112020.0,112010.0,1.46761117]
[1756314197880,0.1507341,112020.0,112010.0,1.46761117]
[1756314198177,0.02797,112020.0,112010.0,1.82841117]
[1756314198376,0.4932811,112030.0,112020.0,0.0892541]
[1756314198683,0.02797,112030.0,112020.0,0.60289663]
[1756314199278,0.02797,112030.0,112020.0,0.96369663]
[1756314199479,0.02897,112030.0,112020.0,0.96369663]
[1756314199976,0.001,112030.0,112020.0,0.96369663]
[1756314200174,0.001,112030.0,112020.0,0.51364253]
[1756314200175,0.1333761,112030.0,112020.0,0.51364253]
[1756314200382,0.2143061,112030.0,112020.0,1.35812253]
[1756314200577,0.2153061,112030.0,112020.0,1.35812253]
[1756314200785,0.2153061,112030.0,112020.0,0.51364253]
[1756314200975,0.2153061,112030.0,112010.0,0.98368927]
[1756314200976,0.1798041,112020.0,112010.0,0.98368927]
[1756314201172,0.2133141,112020.0,112010.0,1.82836927]
[1756314201375,0.1886341,112020.0,112010.0,1.82836927]
[1756314201783,0.2133141,112020.0,112010.0,1.82836927]
[1756314202077,0.1323841,112020.0,112010.0,1.82836927]
[1756314203083,0.1658941,112020.0,112010.0,1.82836927]
[1756314203287,0.07664,112020.0,112010.0,1.82836927]
[1756314203586,0.04313,112020.0,112010.0,1.82836927]
[1756314204285,0.12406,112020.0,112010.0,1.82768927]
[1756314204482,0.2317941,112020.0,112010.0,1.82748927]
[1756314204682,0.2317941,112020.0,112010.0,1.46668927]
[1756314204979,0.2317941,112020.0,112010.0,0.95304674]
[1756314205184,0.2317941,112020.0,112010.0,1.46668927]
[1756314205790,0.14254,112020.0,112010.0,1.46668927]
[1756314205987,0.02797,112020.0,112010.0,1.46668927]
[1756314206388,0.1172241,112020.0,112010.0,1.46668927]
[1756314206586,0.1754141,112020.0,112010.0,1.46668927]
[1756314207388,0.1507341,112020.0,112010.0,1.82748927]
[1756314207688,0.02797,112020.0,112010.0,1.82748927]
[1756314208088,0.1172241,112020.0,112010.0,1.82748927]
[1756314209087,0.1187721,112030.0,112020.0,0.0892541]
[1756314209289,0.02942,112030.0,112020.0,0.96369663]
[1756314210096,0.001,112030.0,112020.0,0.96369663]
[1756314210298,0.002,112030.0,112020.0,1.61369663]
[1756314210500,0.002,112030.0,112020.0,1.75369663]
[1756314211303,0.001,112030.0,112020.0,1.75369663]
[1756314211708,0.001,112030.0,112020.0,3.45085663]
[1756314211900,0.0001,112040.0,112030.0,0.0892457]
[1756314212101,0.0001,112050.0,112040.0,0.0892377]
[1756314212300,0.14190824,112060.0,112050.0,0.0892293]
[1756314212598,0.08536824,112060.0,112050.0,1.2928693]
[1756314212802,0.01838824,112060.0,112050.0,2.17651183]
[1756314213403,0.02038824,112060.0,112050.0,2.17651183]
[1756314214000,0.02038824,112060.0,112050.0,1.80651183]
[1756314214200,0.02038824,112060.0,112050.0,2.17651183]
[1756314214406,0.01838824,112060.0,112050.0,2.17651183]
[1756314214905,0.01938824,112060.0,112050.0,1.33367183]
[1756314215200,0.01938824,112060.0,112050.0,2.42607183]
[1756314215504,0.01838824,112060.0,112050.0,2.42599183]
[1756314215708,0.01838824,112060.0,112050.0,2.42699183]
[1756314215902,0.01838824,112060.0,112050.0,1.58467183]
[1756314216201,0.01838824,112060.0,112050.0,2.42699183]
[1756314216404,0.01838824,112060.0,112050.0,1.58467183]
[1756314216605,0.01838824,112060.0,112050.0,2.42675183]
[1756314217293,0.01838824,112060.0,112050.0,2.43576789]
[1756314217497,0.01838824,112060.0,112050.0,1.21467183]
[1756314217701,0.01838824,112060.0,112050.0,2.05655183]
[1756314220007,0.06326824,112060.0,112050.0,1.2919493]
[1756314220210,0.06326824,112060.0,112050.0,0.96467183]
[1756314220410,0.14180824,112060.0,112050.0,1.80539183]
[1756314220711,0.12634824,112060.0,112050.0,1.80539183]
[1756314221414,0.14180824,112060.0,112050.0,1.80547183]
[1756314221603,0.14380824,112060.0,112050.0,1.80447183]
[1756314221804,0.2324092,112050.0,112040.0,0.06984693]
[1756314222003,0.74605173,112050.0,112040.0,0.84064]
[1756314222208,1.35685173,112050.0,112040.0,0.84064]
[1756314222407,0.8432092,112050.0,112040.0,0.86956]
[1756314222602,0.8432092,112050.0,112030.0,0.46988684]
[1756314222803,0.14318,112040.0,112030.0,0.46988684]
[1756314223008,0.12342,112040.0,112030.0,1.33948684]
[1756314223413,0.39318,112040.0,112030.0,0.46988684]
[1756314223614,0.75398,112040.0,112030.0,0.97869144]
[1756314224208,0.71534,112040.0,112030.0,0.97869144]
[1756314224409,0.75398,112040.0,112030.0,0.97969144]
[1756314224814,0.75398,112040.0,112030.0,0.98069144]
[1756314225610,0.75498,112040.0,112030.0,0.97969144]
[1756314226419,0.75498,112040.0,112030.0,0.97869144]
[1756314226715,0.75498,112040.0,112030.0,0.97969144]
[1756314227110,0.75698,112040.0,112030.0,0.97869144]
[1756314228915,0.8462174,112040.0,112030.0,0.97869144]
[1756314229811,0.8462174,112040.0,112030.0,0.88944634]
[1756314230914,0.8462174,112040.0,112030.0,0.97869154]
[1756314231312,0.8462174,112040.0,112030.0,0.88944634]
[1756314231509,0.2030052,112030.0,112020.0,0.0892475]
[1756314231710,0.2324252,112030.0,112020.0,0.9548875]
[1756314232215,0.2324252,112030.0,112020.0,1.46853003]
[1756314232604,0.2344252,112030.0,112020.0,1.46853003]
[1756314232804,0.2344252,112030.0,112020.0,0.9548875]
[1756314233009,0.5952252,112030.0,112020.0,0.86564]
[1756314233204,0.5952252,112030.0,112020.0,0.9548932]
[1756314234310,0.5952252,112030.0,112010.0,0.98368697]
[1756314234311,0.0892534,112020.0,112010.0,0.98368697]
[1756314234517,0.2324334,112020.0,112010.0,1.84832697]
[1756314234910,0.2324334,112020.0,112010.0,0.97332444]
[1756314235312,0.2324334,112020.0,112010.0,1.41160246]
[1756314239620,0.08674,112020.0,112010.0,1.41160246]
[1756314239820,0.11855,112020.0,112010.0,1.41160246]
[1756314240015,0.2311235,112020.0,112010.0,1.41160246]
[1756314240720,0.2078035,112020.0,112010.0,1.41160246]
[1756314241222,0.11855,112020.0,112010.0,1.41160246]
[1756314241516,0.02942,112020.0,112010.0,1.91160246]
[1756314241822,0.02942,112020.0,112010.0,1.41160246]
[1756314242427,0.5945334,112030.0,112010.0,1.41160246]
[1756314242428,0.1176958,112030.0,112020.0,0.0892535]
[1756314242725,0.04376,112030.0,112020.0,0.52753152]
[1756314242921,0.1876355,112030.0,112020.0,0.52753152]
[1756314243120,0.2064255,112030.0,112020.0,0.52753152]
[1756314243426,0.2297455,112030.0,112020.0,0.52753152]
[1756314243924,0.2307455,112030.0,112020.0,0.52753152]
[1756314244926,0.2317455,112030.0,112020.0,0.52753152]
[1756314247326,0.2317455,112030.0,112020.0,0.0892535]
[1756314247528,0.2317455,112030.0,112020.0,0.52753152]
[1756314248529,0.1425,112030.0,112020.0,0.52753152]
[1756314249132,0.03035,112030.0,112020.0,0.52753152]
[1756314249332,0.03035,112030.0,112020.0,0.88833152]
[1756314249733,0.1425,112030.0,112020.0,0.88833152]
[1756314250530,0.2317455,112030.0,112020.0,0.88833152]
[1756314250734,0.2317455,112030.0,112020.0,1.74741152]
[1756314251135,0.2317455,112030.0,112020.0,0.88833152]
[1756314251334,0.2317455,112030.0,112020.0,1.38661152]
[1756314252640,0.2317455,112030.0,112020.0,0.52753152]
[1756314252836,0.2317455,112030.0,112020.0,1.38697152]
[1756314254336,0.2317455,112030.0,112020.0,0.52753152]
[1756314254537,0.2317455,112030.0,112020.0,1.38581152]
[1756314255638,0.2317455,112030.0,112020.0,0.52753152]
[1756314255837,0.2317455,112030.0,112020.0,1.38581152]
[1756314257538,0.002,112030.0,112020.0,2.08661152]
[1756314257735,0.002,112030.0,112020.0,2.37661152]
[1756314258247,0.03035,112030.0,112020.0,2.37661152]
[1756314258649,0.002,112030.0,112020.0,2.37661152]
[1756314259049,0.002,112030.0,112020.0,2.38661152]
[1756314259446,0.06668,112040.0,112030.0,0.0892456]
[1756314259649,0.2109477,112040.0,112030.0,1.75048362]
[1756314260143,0.5905377,112040.0,112020.0,0.4500495]
[1756314260348,0.1405,112030.0,112020.0,0.88832752]
[1756314260550,0.2297456,112030.0,112020.0,0.0892536]
[1756314260751,0.66802362,112030.0,112020.0,0.0892536]
[1756314260947,0.1405,112020.0,112010.0,0.90832366]
[1756314261153,0.1405,112020.0,112010.0,1.77140366]
[1756314262041,0.06658,112020.0,112010.0,1.77140366]
[1756314262554,0.04376,112020.0,112010.0,1.77140366]
[1756314263053,0.02835,112020.0,112010.0,1.77140366]
[1756314263952,0.02835,112020.0,112010.0,2.21140366]
[1756314265349,0.02835,112020.0,112010.0,1.34832366]
[1756314265555,0.02835,112020.0,112010.0,2.20968366]
[1756314271356,0.02835,112020.0,112010.0,0.90832366]
[1756314271558,0.02835,112020.0,112010.0,1.76744366]
[1756314271758,0.02835,112020.0,112010.0,1.40832366]
[1756314271955,0.02835,112020.0,112010.0,1.76744366]
[1756314273363,0.0001,112030.0,112020.0,0.0892537]
[1756314273657,0.02978,112040.0,112030.0,0.0892457]
[1756314273861,0.02968,112040.0,112030.0,1.75384372]
[1756314274058,0.06189,112040.0,112030.0,1.75384372]
[1756314274359,0.08651,112040.0,112030.0,1.75384372]
[1756314274761,0.08851,112040.0,112030.0,1.75384372]
[1756314275862,0.03168,112040.0,112030.0,1.75384372]
[1756314276266,0.14428,112040.0,112030.0,0.4500457]
[1756314276564,0.2345177,112040.0,112030.0,0.0892457]
[1756314276762,0.2345177,112040.0,112030.0,0.9540457]
[1756314276960,0.2345177,112040.0,112030.0,1.39232372]
[1756314278663,0.2345177,112040.0,112030.0,0.52752372]
[1756314278865,0.2345177,112040.0,112030.0,1.39360372]
[1756314279558,0.1802177,112040.0,112030.0,0.0892457]
[1756314279763,1.28359572,112040.0,112030.0,0.0892457]
[1756314280264,1.28359572,112040.0,112030.0,0.9550057]
[1756314281166,0.8453177,112040.0,112030.0,0.9550057]
[1756314281562,1.28359572,112040.0,112030.0,0.9550057]
[1756314282167,0.8453177,112040.0,112030.0,0.9550057]
[1756314284368,0.2315303,112030.0,112020.0,0.0892489]
[1756314284568,0.66980832,112030.0,112020.0,0.0892489]
[1756314284765,0.66980832,112030.0,112020.0,0.9528889]
[1756314285268,1.03060832,112030.0,112020.0,0.9528937]
[1756314285866,1.03060832,112030.0,112010.0,0.10937548]
[1756314285867,0.0892537,112020.0,112010.0,0.10937548]
[1756314286077,1.03061172,112020.0,112010.0,0.97261548]
[1756314287868,1.03061172,112020.0,112010.0,0.97261808]
[1756314288875,0.5923337,112020.0,112010.0,0.97261808]
[1756314289765,0.06661,112020.0,112010.0,1.4108961]
[1756314289969,0.06661,112020.0,112010.0,2.0216961]
[1756314289970,0.02968,112020.0,112010.0,2.0216961]
[1756314290876,0.02978,112030.0,112020.0,0.0892537]
[1756314291076,0.1343157,112030.0,112020.0,0.0892537]
[1756314291376,0.1343157,112030.0,112020.0,0.52753172]
[1756314291571,0.1880657,112030.0,112020.0,0.52753172]
[1756314291970,0.2126857,112030.0,112020.0,0.52753172]
[1756314292178,0.06661,112030.0,112020.0,0.52753172]
[1756314292676,0.06761,112030.0,112020.0,0.52753172]
[1756314293069,0.001,112030.0,112020.0,1.21833172]
[1756314293269,0.001,112030.0,112020.0,1.46833172]
[1756314293576,0.001,112030.0,112020.0,1.21833172]
[1756314294571,0.001,112030.0,112020.0,1.46833172]
[1756314297780,0.04757977,112040.0,112030.0,0.0892457]
[1756314297980,0.04747977,112040.0,112030.0,1.74840372]
[1756314298782,0.12592977,112040.0,112030.0,0.4500457]
[1756314298980,0.15991977,112040.0,112030.0,1.74748372]
[1756314299279,0.16091977,112040.0,112030.0,1.74748372]
[1756314299783,0.16091977,112040.0,112030.0,0.88832372]
[1756314300081,0.93843559,112040.0,112030.0,0.9505257]
[1756314300876,0.50015757,112040.0,112030.0,0.0892457]
[1756314301081,0.50015757,112040.0,112030.0,0.9504857]
[1756314301681,0.50015757,112040.0,112030.0,0.0892457]
[1756314301872,0.50015757,112040.0,112030.0,0.9500857]
[1756314303076,0.04847977,112040.0,112030.0,1.74916372]
[1756314303477,0.10514977,112040.0,112030.0,0.88832372]
[1756314303673,0.25006757,112040.0,112030.0,0.88832372]
[1756314303883,0.25006757,112040.0,112030.0,0.9494857]
[1756314304185,0.04847977,112040.0,112030.0,1.38776372]
[1756314304382,0.04847977,112040.0,112030.0,1.74856372]
[1756314304684,0.04847977,112040.0,112030.0,2.09856372]
[1756314304880,0.01879977,112040.0,112030.0,2.09856372]
[1756314305188,0.001,112040.0,112030.0,2.78684174]
[1756314305377,0.001,112040.0,112030.0,2.79563573]
[1756314305777,0.001,112040.0,112030.0,2.96563573]
[1756314307283,0.0001,112050.0,112040.0,0.0892378]
[1756314307483,0.06410595,112060.0,112050.0,0.0892298]
[1756314307684,0.06400595,112060.0,112050.0,1.3103098]
[1756314308384,0.06400595,112060.0,112050.0,0.4500298]
[1756314308583,0.17635595,112060.0,112050.0,0.96318251]
[1756314308886,0.17735595,112060.0,112050.0,1.3091098]
[1756314309183,0.17735595,112060.0,112050.0,1.82226251]
[1756314309584,0.17735595,112060.0,112050.0,1.3091098]
[1756314310276,0.17735595,112060.0,112050.0,0.4500298]
[1756314310480,0.15896771,112060.0,112050.0,1.3084698]
[1756314311186,0.15896771,112060.0,112050.0,0.4500298]
[1756314311412,0.15896771,112060.0,112050.0,1.3080698]
[1756314312000,0.24818951,112060.0,112050.0,0.4500298]
[1756314312186,0.49818951,112060.0,112050.0,0.0892298]
[1756314312489,0.85898951,112060.0,112050.0,0.9469898]
[1756314313790,0.85898951,112060.0,112050.0,1.01784403]
[1756314313991,0.40896771,112060.0,112050.0,1.01784403]
[1756314314185,0.76976771,112060.0,112050.0,1.01784403]
[1756314314987,0.85898951,112060.0,112050.0,0.16008403]
[1756314315189,0.85898951,112060.0,112050.0,0.9458698]
[1756314315395,0.76976771,112060.0,112050.0,0.9458698]
[1756314315787,0.85898951,112060.0,112050.0,0.9458698]
[1756314316797,0.76976771,112060.0,112050.0,0.9458698]
[1756314317194,0.29661771,112060.0,112050.0,1.45902251]
[1756314317595,0.33060771,112060.0,112050.0,1.45902251]
[1756314317796,0.04661771,112060.0,112050.0,1.45902251]
[1756314318893,0.19250931,112060.0,112050.0,1.45902251]
[1756314319097,0.24818931,112060.0,112050.0,0.60238251]
[1756314319395,0.24818931,112060.0,112050.0,1.45806251]
[1756314320198,0.24818931,112060.0,112050.0,0.9449098]
[1756314320800,0.24818931,112060.0,112050.0,0.9444698]
[1756314321298,0.24818931,112060.0,112050.0,0.9435498]
[1756314322301,0.24818931,112060.0,112050.0,0.0892298]
[1756314322500,0.60898931,112060.0,112050.0,0.0892298]
[1756314322701,0.60898931,112060.0,112050.0,0.9430698]
[1756314323898,0.15896771,112060.0,112050.0,0.9430698]
[1756314324099,0.04661771,112060.0,112050.0,0.9430698]
[1756314324698,0.15118941,112060.0,112050.0,0.9430698]
[1756314324904,0.23011941,112060.0,112050.0,1.45622251]
[1756314325704,0.08422771,112060.0,112050.0,1.45622251]
[1756314325908,0.11821771,112060.0,112050.0,1.45622251]
[1756314326097,0.20743941,112060.0,112050.0,1.45622251]
[1756314326297,0.11821771,112060.0,112050.0,1.45622251]
[1756314326493,0.08422771,112060.0,112050.0,1.45622251]
[1756314326998,0.23011941,112060.0,112050.0,0.9430698]
[1756314327203,0.23011941,112060.0,112050.0,1.45622251]
[1756314327499,0.04661771,112060.0,112050.0,1.38100491]
[1756314327900,0.10328771,112060.0,112050.0,1.38100491]
[1756314329205,0.19250941,112060.0,112050.0,1.38100491]
[1756314329604,0.1747417,112060.0,112050.0,1.38100491]
[1756314330607,0.1520617,112060.0,112050.0,1.38100491]
[1756314331512,0.1180717,112060.0,112050.0,1.38100491]
[1756314331904,0.2126817,112060.0,112050.0,1.38100491]
[1756314332211,0.06588,112060.0,112050.0,1.38100491]
[1756314332406,0.06588,112060.0,112050.0,1.74180491]
[1756314332711,0.1551017,112060.0,112050.0,1.74180491]
[1756314334215,0.1889017,112060.0,112050.0,1.74180491]
[1756314334713,0.2126817,112060.0,112050.0,0.88796491]
[1756314334917,0.2126817,112060.0,112050.0,1.73884491]
[1756314335213,0.2318517,112060.0,112050.0,0.4500298]
[1756314335402,0.2318517,112060.0,112050.0,1.73812491]
[1756314336510,0.04421,112060.0,112050.0,1.73812491]
[1756314337711,0.02885,112060.0,112050.0,1.73812491]
[1756314339615,0.02885,112060.0,112050.0,2.08812491]
[1756314339915,0.001,112060.0,112050.0,2.33812491]
[1756314340414,0.001,112060.0,112050.0,2.32812491]
[1756314342821,0.02972,112100.0,112090.0,0.0891978]
[1756314343113,0.11972,112100.0,112090.0,0.88793291]
[1756314343311,0.2326899,112100.0,112090.0,1.37601291]
[1756314343614,0.1435,112100.0,112090.0,1.37601291]
[1756314343915,0.1495,112100.0,112090.0,1.39385124]
[1756314344212,0.1535,112100.0,112090.0,1.39385124]
[1756314344413,0.2426899,112100.0,112090.0,1.39385124]
[1756314344712,0.6034899,112100.0,112090.0,1.30433344]
[1756314345115,0.6034899,112100.0,112090.0,1.39353134]
[1756314346118,0.6034899,112100.0,112090.0,0.54497134]
[1756314346308,0.6004899,112100.0,112090.0,1.39293134]
[1756314346509,0.60925874,112100.0,112090.0,1.39293134]
[1756314346815,0.60425874,112100.0,112090.0,0.95499623]
[1756314347109,1.04219385,112100.0,112090.0,0.01783833]
[1756314347308,1.29419385,112100.0,112090.0,0.86567833]
[1756314347513,1.29419385,112100.0,112090.0,0.01783833]
[1756314348010,1.29519385,112100.0,112090.0,0.86547833]
[1756314348614,0.85725874,112100.0,112090.0,0.86547833]
[1756314348814,1.29519385,112100.0,112090.0,0.86547833]
[1756314349114,1.29519385,112100.0,112090.0,0.01783833]
[1756314353117,1.04519385,112100.0,112090.0,0.01783833]
[1756314354413,0.60725874,112100.0,112090.0,0.01783833]
[1756314354614,1.04519385,112100.0,112090.0,0.10703623]
[1756314355108,0.60725874,112100.0,112090.0,0.10703623]
[1756314355315,1.04519385,112100.0,112090.0,0.10703623]
[1756314355618,1.04519385,112100.0,112090.0,0.01783833]
[1756314356214,0.2326979,112090.0,112080.0,0.0892046]
[1756314356413,1.03143301,112090.0,112080.0,0.0892046]
[1756314357312,1.03343301,112090.0,112080.0,0.0892046]
[1756314357518,1.03443301,112090.0,112080.0,0.0892046]
[1756314357720,1.03443301,112090.0,112080.0,0.1070446]
[1756314358020,1.03443301,112090.0,112080.0,0.1299746]
[1756314358216,0.5964979,112090.0,112080.0,0.1299746]
[1756314359718,0.5964979,112090.0,112080.0,0.56790971]
[1756314360622,0.5959979,112090.0,112080.0,0.3621346]
[1756314360822,0.5959979,112090.0,112080.0,0.56790971]
[1756314361320,0.5068,112090.0,112080.0,0.56790971]
[1756314361525,0.5959979,112090.0,112080.0,0.56790971]
[1756314361927,0.146,112090.0,112080.0,0.92870971]
[1756314362121,0.1127,112090.0,112080.0,0.92870971]
[1756314362521,0.146,112090.0,112080.0,0.92870971]
[1756314362923,0.2351979,112090.0,112080.0,0.92870971]
[1756314363123,0.2341979,112090.0,112080.0,0.92870971]
[1756314363423,1.03293301,112090.0,112080.0,0.9764558]
[1756314363623,0.5949979,112090.0,112080.0,0.1299758]
[1756314363919,0.5959979,112090.0,112080.0,0.1299758]
[1756314364123,0.5959979,112090.0,112080.0,0.9764558]
[1756314364425,0.5959979,112090.0,112080.0,0.1299758]
[1756314364725,0.5959979,112090.0,112080.0,0.9764558]
[1756314365520,0.5959979,112090.0,112080.0,0.1121358]
[1756314365723,0.146,112090.0,112080.0,1.37362091]
[1756314365922,0.146,112090.0,112080.0,1.39146091]
[1756314366121,0.146,112090.0,112080.0,1.75226091]
[1756314368732,0.145,112090.0,112080.0,1.75226091]